{"text_format":"1","workbook":"xlsx","n_sheets":2,"sheets":["Colocar fórmula","Tabela BD - Procurar"],"not_rendered":{"charts":0,"images":0,"macros":0,"external_links":0,"defined_names":0,"comments":0,"pivot_tables":0},"unopened":[],"bounds":{"document_bytes":16777216,"sheet_cells":100000,"rows_first":2000,"rows_last":500,"rows_between":2000,"halvings":0,"cell_chars":16384,"cell_head_chars":4096},"cells_cut":0,"cells_raw":0,"read":"whole","date_system":"1900"}

{"sheet":"Colocar fórmula","index":0,"n_rows":15,"n_cols":5,"rows_kept":15,"cut":false,"hidden":false,"merged":[]}
["QTD","MATERIAL","Qtd",null,"A solução pretenda é esta:"]
[{"$f":"ROW(A1)","v":1},"pão","fórmula??",null,"centeio"]
[{"$f":"IF(B2=B3,A2+1,1)","v":2},"pão",null,null,"arroz"]
[{"$f":"IF(B3=B4,A3+1,1)","v":3},"pão",null,null,"trigo"]
[4,"pão",null,null,"agua"]
[1,"massa",null,null,"esparguete"]
[2,"massa",null,null,"rolo"]
[3,"massa",null,null,"cubos"]
[4,"massa",null,null,"pevide"]
[5,"massa",null,null,"pequena"]
[1,"arroz",null,null,"cigala"]
[1,"fermento",null,null,"neve"]
[2,"fermento",null,null,"trigo"]
[1,"ovos",null,null,"galinha"]
[1,"colher",null,null,"pau"]

{"sheet":"Tabela BD - Procurar","index":1,"n_rows":7,"n_cols":13,"rows_kept":7,"cut":false,"hidden":false,"merged":[]}
["MATERIAL",1,2,3,4,5,6,7,8,10,null,"contar","MAX"]
["pão","centeio","arroz","trigo","agua","milho",null,null,null,null,null,{"$f":"COUNTIF('Colocar fórmula'!B:B,'Tabela BD - Procurar'!A2)","v":4},{"$f":"MAX(L2:L7)","v":5}]
["massa","esparguete","rolo","cubos","pevide","pequena","redonda","triangular","quadrada","italiana",null,{"$f":"COUNTIF('Colocar fórmula'!B:B,'Tabela BD - Procurar'!A3)","v":5}]
["arroz","cigala","sucesso","chines","japones","africano",null,null,null,null,null,{"$f":"COUNTIF('Colocar fórmula'!B:B,'Tabela BD - Procurar'!A4)","v":1}]
["fermento","neve","trigo","agua","milho",null,null,null,null,null,null,{"$f":"COUNTIF('Colocar fórmula'!B:B,'Tabela BD - Procurar'!A5)","v":2}]
["ovos","galinha","pato","cordeniz","ganso",null,null,null,null,null,null,{"$f":"COUNTIF('Colocar fórmula'!B:B,'Tabela BD - Procurar'!A6)","v":1}]
["colher","pau","metal",null,null,null,null,null,null,null,null,{"$f":"COUNTIF('Colocar fórmula'!B:B,'Tabela BD - Procurar'!A7)","v":1}]